fUST/lending_fUST_20240528
["ID","MTS","AMOUNT","RATE_DAILY","PERIOD"]
[328071986,1716835838322,-946.97919326,0.00026289,2]
[328071988,1716835838331,-946.97919326,0.00026389,2]
[328071990,1716835838340,-946.97919326,0.00026592,2]
[328071992,1716835838350,-946.97919326,0.00026812,2]
[328071994,1716835838359,-542.22734876,0.00027054,2]
[328071996,1716835838368,-542.22734876,0.00027092,2]
[328071998,1716835838377,-795.18213922,0.00027267,2]
[328072000,1716835838387,-357.06,0.00027287,3]
[328072002,1716835838396,-542.22734876,0.00027291,2]
[328072004,1716835838405,-77123.28761358,0.00027297,3]
[328072005,1716835838415,-24754.58,0.00027387,3]
[328072007,1716835838424,-811.9,0.00027397,4]
[328072009,1716835838433,-500.0,0.00027397,4]
[328072011,1716835838442,-500.0,0.00027397,4]
[328072013,1716835838451,-4335.48,0.00027397,4]
[328072015,1716835838460,-500.0,0.00027397,4]
[328072016,1716835838469,-500.0,0.00027397,4]
[328072018,1716835838478,-928.83,0.00027397,4]
[328072020,1716835838487,-500.0,0.00027397,4]
[328072022,1716835838497,-300.0,0.00027397,4]
[328072024,1716835838507,-500.0,0.00027397,4]
[328072026,1716835838515,-500.0,0.00027397,4]
[328072028,1716835838524,-504.95,0.00027397,4]
[328072030,1716835838533,-500.0,0.00027397,4]
[328072031,1716835838542,-500.0,0.00027397,4]
[328072033,1716835838551,-500.0,0.00027397,4]
[328072035,1716835838561,-2199.37,0.00027397,4]
[328072037,1716835838569,-462.44537244,0.00027397,4]
[328072039,1716835838579,-500.0,0.00027397,4]
[328072041,1716835838588,-513.26,0.00027397,4]
[328072043,1716835838598,-500.0,0.00027397,4]
[328072045,1716835838607,-500.0,0.00027397,4]
[328072047,1716835838616,-500.0,0.00027397,4]
[328072049,1716835838625,-581.43749313,0.00027397,4]
[328072050,1716835838635,-500.0,0.00027397,4]
[328072052,1716835838644,-680.62,0.00027397,4]
[328072054,1716835838653,-500.0,0.00027397,4]
[328072056,1716835838663,-500.0,0.00027397,4]
[328072058,1716835838672,-500.0,0.00027397,4]
[328072060,1716835838682,-500.0,0.00027397,4]
[328072062,1716835838691,-500.0,0.00027397,4]
[328072064,1716835838700,-500.0,0.00027397,4]
[328072066,1716835838709,-500.0,0.00027397,4]
[328072068,1716835838718,-500.0,0.00027397,4]
[328072070,1716835838727,-2795.70921456,0.00027397,4]
[328072072,1716835838739,-1940.55078544,0.00027397,4]
[328072074,1716835838748,-500.0,0.00027397,4]
[328072076,1716835838758,-513.89838522,0.00027397,4]
[328072078,1716835838767,-1530.3,0.00027397,2]
[328072080,1716835838777,-626.39,0.00027397,4]
[328072082,1716835838786,-500.0,0.00027397,4]
[328072083,1716835838795,-500.0,0.00027397,4]
[328072085,1716835838804,-500.0,0.00027397,4]
[328072087,1716835838813,-500.0,0.00027397,4]
[328072089,1716835838823,-604.12,0.00027397,4]
[328072091,1716835838832,-3255.45,0.00027397,4]
[328072093,1716835838841,-500.0,0.00027397,4]
[328072095,1716835838850,-544.05,0.00027397,4]
[328072097,1716835838859,-777.08,0.00027397,4]
[328072099,1716835838870,-1401.36,0.00027397,4]
[328072101,1716835838879,-774.37,0.00027397,4]
[328072103,1716835838888,-500.0,0.00027397,4]
[328072105,1716835838897,-500.0,0.00027397,4]
[328072107,1716835838907,-500.0,0.00027397,4]
[328072109,1716835838915,-11556.03,0.00027397,4]
[328072111,1716835838924,-500.0,0.00027397,4]
[328072112,1716835838933,-500.0,0.00027397,4]
[328072114,1716835838942,-500.0,0.00027397,4]
[328072116,1716835838951,-1795.54,0.00027397,4]
[328072118,1716835838960,-500.0,0.00027397,4]
[328072120,1716835838970,-1554.39,0.00027397,4]
[328072122,1716835838980,-500.0,0.00027397,4]
[328072124,1716835838989,-14142.04,0.00027397,4]
[328072126,1716835838999,-500.0,0.00027397,4]
[328072128,1716835839008,-509.67,0.00027397,4]
[328072130,1716835839018,-500.0,0.00027397,4]
[328072132,1716835839027,-1656.52,0.00027397,4]
[328072134,1716835839036,-500.0,0.00027397,4]
[328072136,1716835839045,-1522.8,0.00027397,4]
[328072138,1716835839054,-500.0,0.00027397,4]
[328072140,1716835839070,-3660.23,0.00027397,4]
[328072142,1716835839079,-500.0,0.00027397,4]
[328072143,1716835839089,-500.0,0.00027397,4]
[328072145,1716835839098,-616.69,0.00027397,4]
[328072147,1716835839109,-500.0,0.00027397,4]
[328072149,1716835839119,-500.0,0.00027397,4]
[328072151,1716835839128,-7660.46,0.00027397,4]
[328072153,1716835839137,-1471.64,0.00027397,4]
[328072155,1716835839147,-500.0,0.00027397,4]
[328072157,1716835839156,-500.0,0.00027397,4]
[328072159,1716835839166,-2396.78,0.00027397,4]
[328072161,1716835839175,-1007.84,0.00027397,4]
[328072163,1716835839184,-560.39,0.00027397,4]
[328072165,1716835839194,-500.0,0.00027397,4]
[328072167,1716835839203,-554.31922219,0.00027397,4]
[328072168,1716835839212,-533.93,0.00027397,4]
[328072170,1716835839222,-500.0,0.00027397,2]
[328072172,1716835839232,-638.9693383,0.00027397,2]
[328072174,1716835839241,-1994.39,0.00027397,4]
[328072176,1716835839250,-557.58,0.00027397,4]
[328072178,1716835839259,-544.32,0.00027397,4]
[328072180,1716835839269,-500.0,0.00027397,4]
[328072182,1716835839279,-500.0,0.00027397,4]
[328072184,1716835839288,-500.0,0.00027397,4]
[328072186,1716835839298,-1573.88236596,0.00027409,7]
[328072187,1716835839307,-542.22734876,0.00027409,2]
[328072189,1716835839317,-117.08375041,0.00027671,4]
[328072191,1716835839327,-500.0,0.00027671,4]
[328072193,1716835839336,-500.0,0.00027671,4]
[328072195,1716835839345,-500.0,0.00027671,4]
[328072197,1716835839354,-782.03,0.00027671,4]
[328072199,1716835839363,-500.0,0.00027671,4]
[328072201,1716835839372,-500.0,0.00027671,4]
[328072204,1716835839394,-517.82961469,0.00027671,4]
[328072206,1716835839404,-500.0,0.00027671,4]
[328072208,1716835839415,-500.0,0.00027671,4]
[328072210,1716835839425,-500.0,0.00027671,4]
[328072212,1716835839434,-500.0,0.00027671,4]
[328072214,1716835839444,-797.79,0.00027671,4]
[328072216,1716835839453,-500.0,0.00027671,4]
[328072218,1716835839463,-500.0,0.00027671,4]
[328072219,1716835839473,-500.0,0.00027671,4]
[328072221,1716835839483,-500.0,0.00027671,4]
[328072223,1716835839494,-500.0,0.00027671,4]
[328072225,1716835839506,-506.73,0.00027671,4]
[328072227,1716835839516,-500.0,0.00027671,4]
[328072229,1716835839526,-500.0,0.00027671,4]
[328072231,1716835839537,-500.0,0.00027671,4]
[328072233,1716835839547,-500.0,0.00027671,4]
[328072235,1716835839558,-500.0,0.00027671,4]
[328072237,1716835839568,-656.31,0.00027671,4]
[328072239,1716835839579,-500.0,0.00027671,4]
[328072241,1716835839590,-506.31046497,0.00027671,4]
[328072243,1716835839601,-514.79208303,0.00027671,4]
[328072246,1716835839611,-500.0,0.00027671,4]
[328072247,1716835839622,-500.0,0.00027671,4]
[328072249,1716835839632,-512.93991283,0.00027671,4]
[328072251,1716835839642,-500.0,0.00027671,4]
[328072254,1716835839652,-500.0,0.00027671,4]
[328072255,1716835839662,-713.29,0.00027671,4]
[328072257,1716835839672,-574.35,0.00027671,4]
[328072259,1716835839682,-486.87061944,0.00027671,4]
[328072262,1716835839698,-13.12938056,0.00027671,4]
[328072264,1716835839708,-886.58269112,0.00027671,4]
[328072579,1716835843314,-500.0,0.00027397,4]
[328072581,1716835843323,-500.0,0.00027397,4]
[328072583,1716835843333,-500.0,0.00027397,4]
[328072585,1716835843342,-469.16730888,0.00027671,4]
[328072587,1716835843350,-352.11476238,0.00027671,4]
[328072607,1716835843613,-147.88523762,0.00027671,4]
[328072608,1716835843622,-149.24955417,0.00027671,4]
[328072990,1716835850148,-352.10349533,0.00027397,4]
[328072992,1716835850158,-559.21,0.00027397,4]
[328072994,1716835850168,-448.19044583,0.00027671,4]
[328072996,1716835850177,-290.33,0.00027671,4]
[328072998,1716835850186,-612.13,0.00027671,4]
[328073000,1716835850195,-500.0,0.00027671,4]
[328073002,1716835850205,-59.86184592,0.00027671,4]
[328073681,1716836748132,-5077.06988925,0.00020751,2]
[328073682,1716836748156,-769.10278981,0.00020752,2]
[328073683,1716836748177,-24900.0,0.0002231,2]
[328073684,1716836748198,-361.48489918,0.00026002,2]
[328073685,1716836748218,-153.0284227,0.00026003,2]
[328073686,1716836748240,-789.14932772,0.00026024,2]
[328073687,1716836748261,-1528.01844238,0.00026047,2]
[328073688,1716836748281,-921.9413628,0.00026286,2]
[328073689,1716836748303,-361.48489918,0.00026489,2]
[328073690,1716836748325,-1528.01844238,0.00026516,2]
[328073691,1716836748347,-789.14932772,0.00026575,2]
[328073692,1716836748373,-1528.01844238,0.00026589,2]
[328073693,1716836748395,-361.48489918,0.00026616,2]
[328073694,1716836748418,-361.48489918,0.00026789,2]
[328073695,1716836748441,-789.14932772,0.00026789,2]
[328073696,1716836748462,-789.14932772,0.00026878,2]
[328073697,1716836748482,-1528.01844238,0.00027068,2]
[328073698,1716836748503,-789.14932772,0.00027147,2]
[328073699,1716836748525,-361.48489918,0.00027167,2]
[328073700,1716836748548,-454.6076444,0.00027288,2]
[328073701,1716836827160,-1000.0,0.00026,2]
[328073702,1716836827180,-1000.0,0.00027,2]
[328073703,1716836827200,-1073.41079798,0.00027288,2]
[328073704,1716836827221,-1097.61227153,0.00027297,2]
[328073705,1716836827239,-5077.06988925,0.00027386,2]
[328073706,1716836827259,-11479.41375124,0.00027387,3]
[328073732,1716837032329,-2904.08101259,0.00020913,2]
[328073832,1716837041266,-1017.91064157,0.00020913,2]
[328073834,1716837041278,-1155.07823509,0.00020913,2]
[328073836,1716837041289,-610.879687,0.00024384,2]
[328073838,1716837041298,-301.23741598,0.00026003,2]
[328073840,1716837041308,-657.62443976,0.00026152,2]
[328073842,1716837041317,-657.62443976,0.000263,2]
[328073844,1716837041328,-1273.34870199,0.0002631,2]
[328073846,1716837041337,-657.62443976,0.00026383,2]
[328073848,1716837041347,-657.62443976,0.00026427,2]
[328073850,1716837041357,-301.23741598,0.00026562,2]
[328073852,1716837041367,-1273.34870199,0.00026637,2]
[328073854,1716837041376,-657.62443976,0.00026659,2]
[328073856,1716837041386,-657.62443976,0.00026663,2]
[328073858,1716837041395,-657.62443976,0.00026724,2]
[328073860,1716837041405,-1273.34870199,0.00026748,2]
[328073862,1716837041414,-657.62443976,0.00026803,2]
[328073864,1716837041423,-1273.34870199,0.00026883,2]
[328073866,1716837041438,-657.62443976,0.00026903,2]
[328073868,1716837041448,-301.23741598,0.00026968,2]
[328073870,1716837041457,-301.23741598,0.00027074,2]
[328073872,1716837041467,-1273.34870199,0.00027086,2]
[328073874,1716837041481,-301.23741598,0.00027151,2]
[328073876,1716837041490,-1273.34870199,0.00027207,2]
[328073878,1716837041500,-301.23741598,0.00027291,2]
[328073880,1716837041510,-960.41073758,0.00027297,2]
[328073882,1716837041520,-657.62443976,0.00027321,2]
[328073884,1716837041529,-761.26183516,0.00027387,2]
[328073886,1716837041540,-456.717891,0.00027387,2]
[328073888,1716837041550,-18715.58,0.00027387,3]
[328073890,1716837041560,-12531.61914268,0.00027387,3]
[328073892,1716837041572,-3064.70085732,0.00027387,3]
[328073895,1716837041582,-159.46892432,0.00027394,2]
[328073897,1716837041591,-399.42758,0.00027396,2]
[328073898,1716837041601,-786.94118298,0.00027397,7]
[328073900,1716837041610,-561.12,0.00027397,4]
[328073902,1716837041620,-653.96,0.00027397,4]
[328073904,1716837041630,-500.0,0.00027397,4]
[328073906,1716837041640,-500.0,0.00027397,4]
[328073909,1716837041650,-728.54,0.00027397,2]
[328073910,1716837041659,-500.0,0.00027397,4]
[328073912,1716837041669,-500.0,0.00027397,4]
[328073915,1716837041678,-500.0,0.00027397,4]
[328073917,1716837041687,-500.0,0.00027397,4]
[328073919,1716837041697,-500.0,0.00027397,4]
[328073921,1716837041707,-500.0,0.00027397,4]
[328073923,1716837041716,-802.6,0.00027397,4]
[328073925,1716837041729,-500.0,0.00027397,4]
[328073927,1716837041739,-391.81568989,0.00027397,4]
[328073929,1716837041748,-250.0,0.00027397,4]
[328073930,1716837041757,-500.0,0.00027397,4]
[328073932,1716837041766,-500.0,0.00027397,4]
[328073934,1716837041775,-500.0,0.00027397,4]
[328073936,1716837041783,-500.0,0.00027397,4]
[328073938,1716837041792,-500.0,0.00027397,4]
[328073940,1716837041801,-500.0,0.00027397,4]
[328073942,1716837041810,-500.0,0.00027397,4]
[328073944,1716837041819,-500.0,0.00027397,4]
[328073946,1716837041828,-500.0,0.00027397,4]
[328073948,1716837041837,-500.0,0.00027397,4]
[328073949,1716837041847,-500.0,0.00027397,4]
[328073951,1716837041856,-500.0,0.00027397,4]
[328073953,1716837041865,-500.0,0.00027397,4]
[328073955,1716837041874,-500.0,0.00027397,4]
[328073957,1716837041883,-1308.98,0.00027397,4]
[328073959,1716837041892,-151.0,0.00027397,2]
[328073960,1716837041901,-500.0,0.00027397,4]
[328073962,1716837041910,-500.0,0.00027397,4]
[328073964,1716837041919,-500.0,0.00027397,4]
[328073965,1716837041929,-500.0,0.00027397,4]
[328073966,1716837041938,-500.0,0.00027397,4]
[328073967,1716837041947,-500.0,0.00027397,4]
[328073968,1716837041956,-653.85,0.00027397,4]
[328073969,1716837041966,-191.175293,0.00027397,2]
[328073970,1716837041976,-500.0,0.00027397,4]
[328073971,1716837041985,-500.0,0.00027397,4]
[328073972,1716837041994,-500.0,0.00027397,4]
[328073973,1716837042003,-500.0,0.00027397,4]
[328073975,1716837042012,-500.0,0.00027397,4]
[328073976,1716837042022,-500.0,0.00027397,4]
[328073978,1716837042031,-1237.77,0.00027397,4]
[328073980,1716837042040,-500.0,0.00027397,4]
[328073982,1716837042050,-207.15,0.00027397,4]
[328073984,1716837042059,-664.4,0.00027397,4]
[328073986,1716837042069,-500.0,0.00027397,4]
[328073987,1716837042079,-1511.49,0.00027397,4]
[328073989,1716837042089,-500.0,0.00027397,4]
[328073991,1716837042099,-300.0,0.00027397,4]
[328073993,1716837042109,-500.0,0.00027397,4]
[328073995,1716837042119,-1004.98,0.00027397,4]
[328073996,1716837042128,-500.0,0.00027397,4]
[328073998,1716837042138,-500.0,0.00027397,4]
[328073999,1716837042147,-500.0,0.00027397,4]
[328074000,1716837042156,-688.5,0.00027397,4]
[328074001,1716837042165,-2284.26,0.00027397,4]
[328074003,1716837042175,-890.13,0.00027397,4]
[328074004,1716837042184,-500.0,0.00027397,4]
[328074005,1716837042193,-500.0,0.00027397,4]
[328074006,1716837042202,-151.0,0.00027397,2]
[328074007,1716837042211,-500.0,0.00027397,4]
[328074008,1716837042219,-500.0,0.00027397,4]
[328074009,1716837042231,-880.01,0.00027397,4]
[328074010,1716837042240,-691.87,0.00027397,4]
[328074011,1716837042249,-500.0,0.00027397,4]
[328074012,1716837042259,-1198.91,0.00027397,4]
[328074013,1716837042269,-500.0,0.00027397,4]
[328074014,1716837042278,-500.0,0.00027397,4]
[328074015,1716837042287,-716.47,0.00027397,4]
[328074016,1716837042296,-500.0,0.00027397,4]
[328074017,1716837042305,-500.0,0.00027397,4]
[328074018,1716837042314,-584.08,0.00027397,4]
[328074019,1716837042323,-500.0,0.00027397,4]
[328074020,1716837042332,-1898.18,0.00027397,4]
[328074021,1716837042341,-151.080939,0.00027397,2]
[328074022,1716837042350,-500.0,0.00027397,4]
[328074023,1716837042360,-500.0,0.00027397,4]
[328074025,1716837042369,-500.0,0.00027397,4]
[328074027,1716837042378,-600.02,0.00027397,4]
[328074028,1716837042387,-500.0,0.00027397,4]
[328074030,1716837042397,-1466.53,0.00027397,2]
[328074032,1716837042406,-518.79,0.00027397,4]
[328074034,1716837042416,-228.92875535,0.00027397,4]
[328074040,1716837042471,-543.78461301,0.00027397,4]
[328074042,1716837042485,-735.56663164,0.00027397,4]
[328074044,1716837042494,-57.78762618,0.00027397,4]
[328074224,1716837044161,-442.21237382,0.00027397,4]
[328074227,1716837044171,-500.0,0.00027397,4]
[328074229,1716837044181,-647.32,0.00027397,4]
[328074231,1716837044190,-500.0,0.00027397,4]
[328074232,1716837044200,-500.0,0.00027397,4]
[328074234,1716837044210,-500.0,0.00027397,4]
[328074237,1716837044220,-567.72735548,0.00027397,4]
[328074239,1716837044232,-1247.29527214,0.00027397,4]
[328074251,1716837044346,-453.77472786,0.00027397,4]
[328074253,1716837044356,-28.67619558,0.00027397,4]
[328074520,1716837156898,943.78957024,0.00015,2]
[328074521,1716837188149,529.12999576,9.999e-05,2]
[328074522,1716837285062,1098.31555755,0.00015,2]
[328074523,1716837304841,523.24502154,9.999e-05,2]
[328074524,1716837316452,514.30780377,9.999e-05,2]
[328074525,1716837326782,917.08791391,9.999e-05,2]
[328074526,1716837360499,154.95351395,9.999e-05,2]
[328074534,1716837817093,521.94946032,9.999e-05,2]
[328074536,1716837959147,-523.24502154,0.00015585,2]
[328074537,1716837959165,-176.4,0.00015586,2]
[328074538,1716837959184,-190.14627615,0.00017753,2]
[328074539,1716837959205,-1718.13937135,0.00017754,2]
[328074597,1716838232780,-154.93802479,0.00017753,2]
[328074598,1716838232790,-788.67342523,0.00017754,2]
[328074662,1716838239244,-13245.34679152,0.00017754,2]
[328074664,1716838239254,-286.08141606,0.00017754,2]
[328074666,1716838239265,-10464.45932638,0.00017999,2]
[328074668,1716838239276,-5077.06988925,0.00018899,2]
[328074670,1716838239286,-1909.31033078,0.000189,2]
[328074672,1716838239296,-260.09104,0.00019269,2]
[328074674,1716838239306,-158.03185795,0.00019587,2]
[328074676,1716838239316,-212.09453614,0.000199,2]
[328074678,1716838239333,-1141.73032015,0.000199,2]
[328074680,1716838239343,-279.1103904,0.0002,2]
[328074681,1716838239353,-12344.02599904,0.0002,2]
[328074683,1716838239363,-181.11191058,0.0002,2]
[328074685,1716838239374,-1352.0716296,0.00020127,2]
[328074687,1716838239384,-212.09453614,0.00020128,2]
[328074689,1716838239394,-212.09453614,0.00020356,2]
[328074691,1716838239405,-212.09453614,0.00020584,2]
[328074693,1716838239416,-786.30609149,0.00020809,2]
[328074695,1716838239427,-786.30609147,0.00020811,2]
[328074697,1716838239437,-212.09453614,0.00020812,2]
[328074699,1716838239447,-786.30609147,0.00020812,2]
[328074701,1716838239456,-201.85669788,0.00020813,2]
[328074703,1716838239467,-1672.75011485,0.00020889,2]
[328074705,1716838239477,-328.51545723,0.00020909,2]
[328074707,1716838239486,-190.05622179,0.00020909,2]
[328074709,1716838239496,-491.93785573,0.00020909,2]
[328074711,1716838239506,-447.81306645,0.0002091,2]
[328074713,1716838239515,-2900.02007599,0.0002091,2]
[328074715,1716838239525,-624.68027582,0.0002091,2]
[328074717,1716838239534,-190.81856612,0.0002091,2]
[328074719,1716838239544,-259.61321772,0.0002091,2]
[328074721,1716838239554,-434.83691766,0.0002091,2]
[328074723,1716838239564,-400.0,0.0002091,2]
[328074725,1716838239575,-243.9745256,0.0002091,2]
[328074727,1716838239585,-155.11366632,0.0002091,2]
[328074729,1716838239595,-388.6908397,0.0002091,2]
[328074731,1716838239608,-111.3091603,0.0002091,2]
[328074733,1716838239619,-455.74488967,0.0002091,2]
[328074735,1716838239630,-500.0,0.0002091,2]
[328074737,1716838239640,-500.0,0.0002091,2]
[328074739,1716838239650,-500.0,0.0002091,2]
[328074741,1716838239660,-500.0,0.0002091,2]
[328074742,1716838239671,-500.0,0.0002091,2]
[328074744,1716838239682,-646.49365419,0.0002091,2]
[328074746,1716838239693,-456.14327367,0.0002091,2]
[328074749,1716838239706,-43.85672633,0.0002091,2]
[328074751,1716838239716,-500.0,0.0002091,2]
[328074753,1716838239727,-500.0,0.0002091,2]
[328074754,1716838239738,-268.03329631,0.0002091,2]
[328074756,1716838239748,-195.41238434,0.0002091,2]
[328074759,1716838239762,-304.58761566,0.0002091,2]
[328074761,1716838239773,-500.0,0.0002091,2]
[328074763,1716838239782,-204.62818508,0.0002091,2]
[328074852,1716838242751,-295.37181492,0.0002091,2]
[328074854,1716838242762,-500.0,0.0002091,2]
[328074856,1716838242772,-500.0,0.0002091,2]
[328074857,1716838242782,-136.91342767,0.0002091,2]
[328074966,1716838244100,-363.08657233,0.0002091,2]
[328074968,1716838244111,-500.0,0.0002091,2]
[328074970,1716838244121,-500.0,0.0002091,2]
[328074972,1716838244130,-500.0,0.0002091,2]
[328074974,1716838244140,-500.0,0.0002091,2]
[328074975,1716838244150,-500.0,0.0002091,2]
[328074976,1716838244159,-500.0,0.0002091,2]
[328074977,1716838244169,-500.0,0.0002091,2]
[328074978,1716838244179,-500.0,0.0002091,2]
[328074979,1716838244189,-500.0,0.0002091,2]
[328074980,1716838244198,-500.0,0.0002091,2]
[328074981,1716838244208,-363.97062977,0.0002091,2]
[328074982,1716838244219,-500.0,0.0002091,2]
[328074983,1716838244228,-500.0,0.0002091,2]
[328074984,1716838244237,-500.0,0.0002091,2]
[328074985,1716838244247,-1426.35505213,0.0002091,7]
[328074986,1716838244256,-216.27108842,0.00020911,2]
[328074987,1716838244265,-265.62665435,0.00020911,2]
[328074988,1716838244378,-15880.25743922,0.00020911,2]
[328074989,1716838244434,-13511.58629355,0.00020911,2]
[328074991,1716838244446,-66628.9900861,0.00020911,2]
[328074993,1716838244456,-3469.50791967,0.00020912,7]
[328074995,1716838244466,-317.22405062,0.00020912,2]
[328074997,1716838244476,-1403.26792763,0.00020912,2]
[328074999,1716838244486,-445.47354415,0.00020912,2]
[328075001,1716838244496,-294.56266559,0.00020912,2]
[328075002,1716838244506,-262.19571981,0.00020912,2]
[328075003,1716838244516,-1499.98100622,0.00020912,2]
[328075004,1716838244526,-285.74012491,0.00020912,2]
[328075005,1716838244537,-239.40626633,0.00020912,2]
[328075006,1716838244547,-1581.42130168,0.00020912,2]
[328075007,1716838244556,-707.16484359,0.00020912,2]
[328075008,1716838244565,-952.85674736,0.00020912,2]
[328075069,1716838246825,-154.93802479,0.00020909,2]
[328075071,1716838246835,-2568.55836387,0.00020912,2]
[328075073,1716838246845,-233.2797648,0.00020912,2]
[328075075,1716838246855,-2005.8334935,0.00020912,2]
[328075077,1716838246866,-155.4042196,0.00020912,2]
[328075079,1716838246876,-1280.85326046,0.00020912,2]
[328075081,1716838246885,-427.25130369,0.00020912,2]
[328075083,1716838246896,-415.98195574,0.00020912,2]
[328075085,1716838246906,-155.35550646,0.00020912,2]
[328075087,1716838246915,-414.72719987,0.00020912,2]
[328075089,1716838246924,-155.70818563,0.00020912,2]
[328075091,1716838246934,-162.68825562,0.00020912,2]
[328075093,1716838246943,-26663.02735702,0.00020912,2]
[328075095,1716838246952,-42009.85148102,0.00020912,2]
[328075097,1716838246961,-270.06099238,0.00020912,2]
[328075099,1716838246970,-155.44196189,0.00020912,2]
[328075101,1716838246980,-530.520944,0.00020913,2]
[328075103,1716838246990,-3982.37422665,0.00021,2]
[328075105,1716838246999,-166.666666,0.00021918,2]
[328075107,1716838247009,-166.666666,0.00022431,2]
[328075127,1716838247192,-166.666666,0.00022944,2]
[328075130,1716838247203,-309.72125088,0.00023,2]
[328075132,1716838247212,-4697.14874934,0.00023,2]
[328075134,1716838247222,-2356.55384362,0.00023279,5]
[328075136,1716838247232,-166.666666,0.00023456,2]
[328075137,1716838247241,-1141.73032009,0.00023471,2]
[328075139,1716838247250,-1909.31033078,0.000239,2]
[328075141,1716838247260,-166.666666,0.00023969,2]
[328075143,1716838247270,-187.39912452,0.00024,2]
[328075146,1716838247281,-200.0,0.0002411,2]
[328075148,1716838247291,-622.404885,0.00024384,2]
[328075150,1716838247301,-166.666666,0.00024482,2]
[328075152,1716838247310,-192.98571482,0.000245,2]
[328075153,1716838247319,-3313.72887715,0.00024626,2]
[328075155,1716838247330,-155.47314599,0.00024654,2]
[328075158,1716838247339,-1007.84224516,0.00024657,2]
[328075160,1716838247349,-22868.14095646,0.00025,2]
[328075161,1716838247359,-402.27306873,0.00025,2]
[328075163,1716838247368,-152.695,0.0002574,2]
[328075165,1716838247377,-499.112,0.0002574,2]
[328075167,1716838247387,-220.80477812,0.00026025,2]
[328075169,1716838247397,-1621.043132,0.000261,2]
[328075171,1716838247406,-240.98993278,0.0002617,2]
[328075173,1716838247416,-438.41629318,0.00026179,2]
[328075175,1716838247425,-438.41629318,0.00026307,2]
[328075177,1716838247435,-438.41629318,0.0002632,2]
[328075179,1716838247444,-438.41629318,0.00026394,2]
[328075181,1716838247454,-438.41629318,0.00026599,2]
[328075184,1716838247463,-1000.0,0.000266,2]
[328075185,1716838247473,-240.98993278,0.00026662,2]
[328075188,1716838247483,-156.04288688,0.00026749,2]
[328075189,1716838247493,-240.98993278,0.00026761,2]
[328075191,1716838247503,-438.41629318,0.00026822,2]
[328075193,1716838247512,-151.0,0.00026839,2]
[328075196,1716838247522,-1018.67896159,0.00026847,2]
[328075198,1716838247532,-7051.52766207,0.00027,2]
[328075200,1716838247542,-151.0,0.00027,2]
[328075202,1716838247551,-151.0,0.00027,2]
[328075204,1716838247562,-10000.0,0.00027031,2]
[328075205,1716838247571,-1141.73032009,0.00027043,2]
[328075207,1716838247581,-1000.0,0.000271,2]
[328075209,1716838247590,-1018.67896159,0.00027208,2]
[328075211,1716838247600,-438.41629318,0.0002723,2]
[328075213,1716838247610,-14675.61068858,0.00027254,2]
[328075215,1716838247620,-538.251931,0.00027254,2]
[328075217,1716838247630,-538.251931,0.00027254,2]
[328075219,1716838247639,-151.0,0.00027254,2]
[328075221,1716838247648,-151.0,0.00027254,2]
[328075223,1716838247658,-151.0,0.00027254,2]
[328075225,1716838247668,-284.267645,0.00027254,2]
[328075227,1716838247677,-151.0,0.00027254,2]
[328075229,1716838247687,-158.438698,0.00027254,2]
[328075231,1716838247697,-151.0,0.00027254,2]
[328075233,1716838247706,-336.512803,0.00027254,2]
[328075235,1716838247716,-336.512803,0.00027254,2]
[328075237,1716838247725,-151.0,0.00027254,2]
[328075239,1716838247735,-151.0,0.00027254,2]
[328075241,1716838247745,-242.362223,0.00027254,2]